bitfinex/quotes_SOLUSD_20241009
["timestamp","ask_amount","ask_price","bid_price","bid_amount"]
[1728515577581,7.1746,139.38,139.34,30.953484]
[1728515578098,7.1742,139.39,139.34,30.953484]
[1728515580201,7.1747,139.38,139.34,30.953484]
[1728515581500,1.43143289,139.4,139.34,23.776884]
[1728515581676,7.1751,139.37,139.33,30.953884]
[1728515581975,1.43143289,139.4,139.33,23.776884]
[1728515582178,7.1763,139.35,139.33,23.776884]
[1728515582395,7.1763,139.35,139.32,23.902374]
[1728515582705,7.1757,139.36,139.32,23.902374]
[1728515582878,7.1757,139.36,139.32,31.079974]
[1728515584890,7.1757,139.36,139.32,44.92926557]
[1728515585091,7.1753,139.37,139.32,44.92926557]
[1728515586587,7.1753,139.37,139.34,23.902374]
[1728515586790,7.1747,139.38,139.34,23.902374]
[1728515586987,34.87711835,139.42,139.34,23.902374]
[1728515587200,7.1742,139.39,139.34,53.51366557]
[1728515587786,7.1747,139.38,139.34,60.68996557]
[1728515589403,7.1747,139.38,139.34,46.840674]
[1728515590583,7.1754,139.37,139.34,39.538884]
[1728515590789,7.1757,139.36,139.34,39.538884]
[1728515591303,19.36563289,139.4,139.34,39.538884]
[1728515591508,19.36563289,139.4,139.34,23.776884]
[1728515591689,7.1758,139.36,139.34,23.776884]
[1728515591884,19.36563289,139.4,139.34,23.776884]
[1728515592088,7.1755,139.37,139.34,23.776884]
[1728515595309,7.1757,139.36,139.34,23.776884]
[1728515595706,7.1757,139.36,139.33,23.776884]
[1728515597109,7.1752,139.37,139.33,23.776884]
[1728515598616,7.175,139.38,139.34,1.68599274]
[1728515598802,7.1742,139.39,139.35,23.776884]
[1728515599000,1.43143289,139.4,139.36,1.4348788]
[1728515599205,7.175,139.38,139.35,23.776884]
[1728515604715,20.0,139.41,139.35,23.776884]
[1728515604903,7.1732,139.41,139.38,23.776884]
[1728515605103,7.1732,139.41,139.39,1.43459803]
[1728515605814,7.1732,139.41,139.38,23.776884]
[1728515606010,7.1732,139.41,139.39,1.43459496]
[1728515606397,7.1732,139.41,139.38,23.776884]
[1728515608324,7.1732,139.41,139.38,37.62617557]
[1728515609518,21.43143289,139.44,139.38,37.62617557]
[1728515609720,7.1726,139.42,139.38,37.62617557]
[1728515609924,7.1726,139.42,139.38,44.80067557]
[1728515610400,7.1716,139.44,139.4,37.62617557]
[1728515610602,7.1716,139.44,139.41,1.43437017]
[1728515611217,7.1722,139.43,139.4,37.62617557]
[1728515611400,7.1722,139.43,139.4,23.776884]
[1728515611596,7.1722,139.43,139.39,23.776884]
[1728515615001,7.1722,139.43,139.39,37.62617557]
[1728515615202,21.43143289,139.47,139.39,37.62617557]
[1728515615417,21.43143289,139.47,139.41,23.776884]
[1728515615817,1.43143289,139.47,139.41,23.776884]
[1728515616394,7.1716,139.44,139.41,23.776884]
[1728515617322,7.1716,139.44,139.4,23.776884]
[1728515617920,7.1716,139.44,139.4,37.62617557]
[1728515619420,7.1716,139.44,139.4,23.776884]
[1728515625623,7.1716,139.44,139.4,23.776884]
[1728515625806,7.1716,139.44,139.4,30.950384]
[1728515630130,7.1711,139.45,139.4,44.79967557]
[1728515630448,7.1711,139.45,139.4,30.950384]
[1728515631024,7.1716,139.44,139.4,30.950384]
[1728515634841,7.1725,139.42,139.39,23.776884]
[1728515635048,7.1725,139.42,139.38,46.4746]
[1728515635543,7.1725,139.42,139.38,32.9661]
[1728515635731,7.1737,139.4,139.36,7.1755]
[1728515636252,7.1737,139.4,139.35,33.0746]
[1728515636452,7.1737,139.4,139.35,40.2504]
[1728515636854,7.1747,139.38,139.35,17.9397]
[1728515637145,17.931,139.43,139.35,17.9397]
[1728515637146,7.1742,139.39,139.35,17.9397]
[1728515639138,7.1742,139.39,139.36,23.776884]
[1728515649969,7.1751,139.37,139.36,23.776884]
[1728515652944,7.1747,139.38,139.36,23.776884]
[1728515654666,7.1737,139.4,139.35,37.87715557]
[1728515656243,7.1737,139.4,139.35,24.027864]
[1728515656471,7.1737,139.4,139.37,23.776884]
[1728515658176,7.1747,139.38,139.36,23.776884]
[1728515658372,7.1742,139.39,139.36,23.776884]
[1728515663582,7.1736,139.4,139.36,30.952384]
[1728515665366,7.1742,139.39,139.36,23.776884]
[1728515666253,1.43143289,139.42,139.36,23.776884]
[1728515666571,7.1737,139.4,139.36,23.776884]
[1728515666972,7.1737,139.4,139.36,30.952484]
[1728515674997,7.1726,139.42,139.38,30.951484]
[1728515676601,6.24844157,139.46,139.41,0.12549]
[1728515676885,19.35603289,139.48,139.42,23.776884]
[1728515678089,20.0,139.47,139.42,23.776884]
[1728515678497,7.1711,139.45,139.42,23.776884]
[1728515678872,7.1711,139.45,139.43,1.4341176]
[1728515679892,7.1711,139.45,139.42,37.62617557]
[1728515680189,7.1711,139.45,139.42,23.776884]
[1728515687370,1.43143289,139.46,139.4,6.5241]
[1728515687679,7.1726,139.42,139.39,15.9157]
[1728515688983,7.1726,139.42,139.4,23.776884]
[1728515689180,19.35813289,139.46,139.4,23.776884]
[1728515689499,7.1717,139.44,139.4,30.950384]
[1728515691080,7.1717,139.44,139.41,0.25098]
[1728515691586,1.43143289,139.47,139.41,0.25098]
[1728515691783,7.1712,139.45,139.42,23.776884]
[1728515692191,1.43143289,139.44,139.37,17.9371]
[1728515692395,7.174,139.4,139.36,6.4236]
[1728515693673,7.1737,139.4,139.36,27.44839157]
[1728515694004,7.1737,139.4,139.37,23.776884]
[1728515699203,21.43143289,139.44,139.39,23.776884]
[1728515699400,7.1729,139.42,139.39,23.776884]
[1728515699592,7.1724,139.43,139.39,44.79997557]
[1728515700691,7.1724,139.43,139.39,30.950684]
[1728515700882,20.0,139.46,139.39,23.776884]
[1728515701073,7.1727,139.42,139.39,23.776884]
[1728515701404,7.1727,139.42,139.38,18.06139]
[1728515701405,7.1731,139.41,139.37,7.1746]
[1728515701590,7.1731,139.41,139.38,23.776884]
[1728515701898,7.1737,139.4,139.37,23.776884]
[1728515702284,7.1732,139.41,139.37,23.776884]
[1728515704393,7.1732,139.41,139.37,30.951984]
[1728515712889,7.1726,139.42,139.37,30.951984]
[1728515713919,21.43143289,139.43,139.37,30.951984]
[1728515714109,7.174,139.4,139.37,23.776884]
[1728515717901,1.43143289,139.43,139.37,23.776884]
[1728515718097,7.175,139.38,139.35,16.1526]
[1728515718305,7.1751,139.37,139.33,7.1771]
[1728515718512,7.1751,139.37,139.32,48.1111]
[1728515718811,7.1751,139.37,139.32,61.96039157]
[1728515719123,7.1742,139.39,139.35,7.1759]
[1728515719705,7.1742,139.39,139.36,23.776884]
[1728515720513,7.1742,139.39,139.35,7.1759]
[1728515720514,7.1742,139.39,139.35,23.776884]
[1728515721503,21.43143289,139.41,139.35,23.776884]
[1728515722419,7.1747,139.38,139.35,23.776884]
[1728515725922,7.1742,139.39,139.35,23.776884]
[1728515731234,7.1757,139.36,139.32,30.1676]
[1728515732726,7.1757,139.36,139.33,23.776884]
[1728515733401,7.175,139.38,139.33,37.62617557]
[1728515733605,7.1742,139.39,139.35,23.776884]
[1728515734032,30.2264,139.41,139.34,7.1762]
[1728515734033,7.1752,139.37,139.34,23.776884]
[1728515734818,1.43143289,139.4,139.33,17.942]
[1728515735031,7.1757,139.36,139.33,17.942]
[1728515736705,7.1752,139.37,139.34,23.776884]
[1728515742629,1.43143289,139.4,139.34,23.776884]
[1728515742834,7.1742,139.39,139.34,30.953084]
[1728515743134,7.1757,139.36,139.34,23.776884]
[1728515743310,7.1766,139.34,139.32,16.3804]
[1728515744230,19.36833289,139.38,139.32,16.3804]
[1728515744419,7.1763,139.35,139.32,16.3804]
[1728515747135,1.43143289,139.36,139.3,21.02749157]
[1728515747136,7.177,139.34,139.3,23.776884]
[1728515747318,1.43143289,139.36,139.3,23.776884]
[1728515747517,7.1772,139.33,139.3,23.776884]
[1728515748227,7.1777,139.32,139.29,24.1493]
[1728515748414,7.1777,139.32,139.28,23.5973]
[1728515749339,1.43143289,139.36,139.3,7.1784]
[1728515750416,7.1767,139.34,139.29,30.955984]
[1728515750931,7.1772,139.33,139.29,23.776884]
[1728515751140,1.43143289,139.36,139.29,23.776884]
[1728515751141,7.1779,139.32,139.29,23.776884]
[1728515751934,7.1773,139.33,139.29,23.776884]
[1728515753332,8.60933289,139.32,139.28,34.3663]
[1728515753537,7.1782,139.31,139.28,34.3663]
[1728515755036,7.1782,139.31,139.28,16.4177]
[1728515756647,7.1788,139.3,139.28,16.4177]
[1728515759149,7.1783,139.31,139.28,16.4177]
[1728515760243,7.1783,139.31,139.29,1.43578367]
[1728515761435,7.1783,139.31,139.28,17.85338544]
[1728515763248,7.1778,139.32,139.28,23.5973]
[1728515763851,7.1787,139.3,139.28,16.4177]
[1728515764349,21.43143289,139.33,139.28,16.4177]
[1728515764536,7.1782,139.31,139.28,16.4177]
[1728515766329,7.1787,139.3,139.28,16.4177]
[1728515767352,7.1777,139.32,139.28,16.4177]
[1728515767534,7.1777,139.32,139.28,23.5973]
[1728515767942,7.1773,139.33,139.29,23.776884]
[1728515768245,20.0,139.32,139.29,23.776884]
[1728515768475,20.0,139.32,139.29,30.956084]
[1728515769427,20.0,139.32,139.29,23.776884]
[1728515769627,7.1768,139.34,139.29,23.776884]
[1728515769953,1.43143289,139.36,139.29,23.776884]
[1728515769954,7.1762,139.35,139.3,21.94571357]
[1728515770140,7.1768,139.34,139.31,23.776884]
[1728515771852,7.1765,139.35,139.31,23.776884]
[1728515772038,7.1758,139.36,139.31,23.776884]
[1728515772656,7.1758,139.36,139.33,23.776884]
[1728515772827,1.43143289,139.37,139.32,23.776884]
[1728515773026,7.1762,139.35,139.32,23.776884]
[1728515774942,1.43143289,139.34,139.28,34.3669]
[1728515775139,7.1778,139.32,139.28,34.3669]
[1728515776045,7.1778,139.32,139.28,41.5466]
[1728515776244,7.1778,139.32,139.29,23.776884]
[1728515785244,1.43143289,139.35,139.28,16.4177]
[1728515785245,21.43143289,139.35,139.28,16.4177]
[1728515785541,7.1785,139.31,139.28,16.4177]
[1728515785943,21.43143289,139.35,139.28,16.4177]
[1728515786151,7.1787,139.3,139.28,16.4177]
[1728515786863,7.1787,139.3,139.25,40.5062]
[1728515787041,7.1787,139.3,139.26,23.776884]
[1728515794550,7.1787,139.3,139.26,30.957584]
[1728515796262,7.1781,139.32,139.26,44.80687557]
[1728515796446,1.43143289,139.33,139.27,21.02949157]
[1728515796447,7.1782,139.31,139.27,21.02949157]
[1728515796848,7.1777,139.32,139.28,23.776884]
[1728515797348,7.1777,139.32,139.28,30.956484]
[1728515797950,7.1773,139.33,139.28,37.62617557]
[1728515798149,7.1773,139.33,139.3,23.776884]
[1728515798377,7.1773,139.33,139.31,1.43546582]
[1728515799047,7.1767,139.34,139.32,1.43546168]
[1728515799255,7.1762,139.35,139.32,1.43546168]
[1728515799655,7.1757,139.36,139.33,1.43532004]
[1728515799857,1.43143289,139.39,139.33,1.43532004]
[1728515799858,7.1752,139.37,139.33,1.43532004]
[1728515800261,7.1756,139.36,139.33,53.776884]
[1728515801952,1.43143289,139.39,139.33,60.953884]
[1728515802177,7.1747,139.38,139.34,1.43501088]
[1728515802469,7.1747,139.38,139.34,31.43501088]
[1728515802678,7.1747,139.38,139.34,30.0]
[1728515803871,21.43143289,139.42,139.35,23.776884]
[1728515804058,7.1744,139.39,139.35,53.776884]
[1728515805883,7.1756,139.36,139.35,30.0]
[1728515806655,1.43143289,139.4,139.35,30.0]
[1728515806856,7.1752,139.37,139.35,30.0]
[1728515807160,7.1745,139.39,139.35,30.0]
[1728515807375,7.1747,139.38,139.35,30.0]
[1728515808375,7.1741,139.39,139.35,30.0]
[1728515809569,1.43143289,139.42,139.35,30.0]
[1728515809570,7.1746,139.38,139.35,30.0]
[1728515820282,21.43143289,139.42,139.35,30.0]
[1728515820490,7.1756,139.36,139.35,30.0]
[1728515822873,7.1756,139.36,139.32,23.776884]
[1728515823073,7.1756,139.36,139.33,30.0]
[1728515823587,7.1764,139.35,139.33,30.0]
[1728515825888,7.1757,139.36,139.33,30.0]
[1728515828196,7.1752,139.37,139.34,23.776884]
[1728515828395,7.1747,139.38,139.34,53.776884]
[1728515829291,1.43143289,139.39,139.34,53.776884]
[1728515829478,20.0,139.42,139.34,66.985284]
[1728515829479,1.43143289,139.41,139.34,66.985284]
[1728515829668,1.43143289,139.41,139.34,82.635384]
[1728515829900,1.43143289,139.41,139.34,96.48467557]
[1728515830377,1.43143289,139.41,139.36,23.776884]
[1728515830577,1.43143289,139.41,139.37,1.43486817]
[1728515830578,7.1741,139.39,139.37,1.43486817]
[1728515831292,1.43143289,139.41,139.37,1.43486817]
[1728515831504,7.173,139.42,139.38,23.776884]
[1728515831793,1.43143289,139.44,139.38,23.776884]
[1728515831975,7.1732,139.41,139.38,23.776884]
[1728515832578,1.43143289,139.45,139.38,23.776884]
[1728515832778,7.1736,139.4,139.37,23.776884]
[1728515832996,7.1731,139.41,139.39,23.776884]
[1728515835201,7.1731,139.41,139.39,53.776884]
[1728515835695,7.1726,139.42,139.39,53.776884]
[1728515839887,7.1726,139.42,139.39,23.776884]
[1728515840087,7.1726,139.42,139.39,53.776884]
[1728515841306,21.43143289,139.46,139.39,53.776884]
[1728515841606,7.172,139.43,139.39,53.776884]
[1728515842396,21.43143289,139.46,139.39,53.776884]
[1728515842696,7.1726,139.42,139.39,53.776884]
[1728515843621,7.1716,139.44,139.41,23.776884]
[1728515843911,7.172,139.43,139.41,23.776884]
[1728515844293,7.172,139.43,139.4,23.776884]
[1728515846706,7.172,139.43,139.41,31.4343332]
[1728515847511,7.172,139.43,139.41,30.0]
[1728515847815,7.1727,139.42,139.4,23.776884]
[1728515848393,7.173,139.41,139.4,23.776884]
[1728515848594,7.173,139.41,139.4,53.776884]
[1728515849618,17.9289,139.44,139.4,53.776884]
[1728515849619,7.1726,139.42,139.4,53.776884]
[1728515851595,7.1726,139.42,139.4,23.776884]
[1728515855614,7.1726,139.42,139.39,15.1873]
[1728515856811,7.1735,139.41,139.39,15.1873]
[1728515857402,7.1735,139.41,139.4,30.0]
[1728515858392,7.1735,139.41,139.37,24.027864]
[1728515861129,7.1735,139.41,139.37,37.87715557]
[1728515861923,7.1735,139.41,139.37,45.05215557]
[1728515871934,7.1735,139.41,139.39,23.776884]
[1728515875915,7.1726,139.42,139.39,23.776884]
[1728515877117,7.1726,139.42,139.4,1.43455467]
[1728515878228,7.1717,139.44,139.41,23.776884]
[1728515878443,7.1717,139.44,139.42,1.43431175]
[1728515878641,7.1711,139.45,139.43,23.776884]
[1728515878823,7.1703,139.47,139.44,1.43412672]
[1728515880923,7.1705,139.46,139.42,23.776884]
[1728515884452,7.68058396,139.51,139.45,13.84929157]
[1728515884629,17.9169,139.54,139.46,39.05995068]
[1728515884630,7.1688,139.5,139.46,39.05995068]
[1728515886762,1.43143289,139.54,139.48,13.84929157]
[1728515887067,7.1675,139.52,139.49,23.776884]
[1728515887355,1.43143289,139.54,139.49,23.776884]
[1728515887561,28.59823289,139.54,139.49,44.79497557]
[1728515887734,28.59823289,139.54,139.49,23.776884]
[1728515887735,7.167,139.53,139.49,23.776884]
[1728515888555,7.1674,139.52,139.49,23.776884]
[1728515890762,1.43143289,139.55,139.49,23.776884]
[1728515891060,7.1681,139.51,139.49,23.776884]
[1728515894473,7.1684,139.5,139.49,23.776884]
[1728515894765,7.1698,139.48,139.45,15.8238]
[1728515894967,7.1685,139.5,139.46,1.43386378]
[1728515895670,7.1685,139.5,139.46,21.01959157]
[1728515896089,7.1685,139.5,139.47,23.776884]
[1728515896860,7.1685,139.5,139.47,37.62617557]
[1728515897248,7.1685,139.5,139.46,23.776884]
[1728515902178,20.0,139.52,139.48,37.62617557]
[1728515902351,1.43143289,139.55,139.5,23.776884]
[1728515902677,7.1675,139.52,139.49,23.776884]
[1728515903262,7.168,139.51,139.49,23.776884]
[1728515903764,7.168,139.51,139.48,23.776884]
[1728515904757,1.43143289,139.55,139.48,23.776884]
[1728515904758,7.1675,139.52,139.49,1.43350372]
[1728515905164,7.1675,139.52,139.5,23.776884]
[1728515905362,7.1675,139.52,139.48,23.776884]
[1728515907349,7.1675,139.52,139.48,30.946284]
[1728515914258,7.1675,139.52,139.48,23.776884]
[1728515914876,7.1684,139.5,139.48,23.776884]
[1728515915773,7.1689,139.49,139.48,23.776884]
[1728515916286,7.1689,139.49,139.44,7.1711]
[1728515916287,7.171,139.45,139.43,6.5294]
[1728515916483,7.1706,139.46,139.43,90.37869157]
[1728515916859,7.1706,139.46,139.44,13.84929157]
[1728515917684,7.1706,139.46,139.43,6.5294]
[1728515917685,7.1706,139.46,139.45,23.776884]
[1728515917881,7.1712,139.45,139.44,23.776884]
[1728515918067,7.1712,139.45,139.44,24.027864]
[1728515925980,7.1712,139.45,139.44,37.87715557]
[1728515929208,7.1712,139.45,139.41,92.9134]
[1728515929209,17.9228,139.49,139.41,85.7405]
[1728515929494,7.1722,139.43,139.41,99.58979157]
[1728515930495,1.43143289,139.48,139.41,99.58979157]
[1728515930496,17.9228,139.49,139.42,24.027864]
[1728515930691,1.43143289,139.48,139.42,24.027864]
[1728515930900,7.1719,139.44,139.42,24.027864]
[1728515931971,7.172,139.43,139.42,23.902374]
[1728515932498,7.1733,139.41,139.39,6.3385]
[1728515932797,7.1736,139.4,139.39,6.3385]
[1728515933627,7.1731,139.41,139.4,24.027864]
[1728515941679,7.1731,139.41,139.4,23.902374]
[1728515942605,7.1731,139.41,139.4,23.776884]
[1728515942780,20.0,139.42,139.34,17.17234612]
[1728515943110,21.43143289,139.42,139.34,85.9263]
[1728515943300,17.9335,139.41,139.34,99.77559157]
[1728515943481,17.9335,139.41,139.35,13.84929157]
[1728515943787,17.9335,139.41,139.34,85.9263]
[1728515943788,17.9335,139.41,139.36,13.84929157]
[1728515943981,17.9335,139.41,139.35,13.84929157]
[1728515944183,17.9335,139.41,139.36,24.027864]
[1728515944382,7.1747,139.38,139.36,24.027864]
[1728515945288,17.9335,139.41,139.36,0.25098]
[1728515945289,7.1751,139.37,139.36,0.25098]
[1728515946104,7.1756,139.36,139.35,23.776884]
[1728515949518,7.175,139.38,139.35,23.776884]
[1728515949716,7.1746,139.38,139.37,23.776884]
[1728515952814,7.1746,139.38,139.37,0.12549]
[1728515952997,7.1746,139.38,139.37,25.46248925]
[1728515953700,7.1746,139.38,139.37,24.027864]
[1728515954196,7.1746,139.38,139.36,24.027864]
[1728515956009,7.1746,139.38,139.36,0.25098]
[1728515956330,7.1751,139.37,139.36,0.25098]
[1728515957425,7.1756,139.36,139.35,0.12549]
[1728515957725,7.1756,139.36,139.34,15.9263]
[1728515958826,7.1756,139.36,139.35,23.776884]
[1728515962133,7.1756,139.36,139.34,23.776884]
[1728515965920,7.1753,139.37,139.35,0.25098]
[1728515966120,7.1753,139.37,139.36,23.776884]
[1728515967630,21.43143289,139.42,139.36,23.776884]
[1728515967814,21.43143289,139.42,139.35,0.25098]
[1728515967815,7.1752,139.37,139.35,24.027864]
[1728515985724,17.9331,139.41,139.35,94.027864]
[1728515986042,7.1747,139.38,139.35,94.027864]
[1728515988148,7.1747,139.38,139.35,107.87715557]
[1728515989025,17.9331,139.41,139.35,24.027864]
[1728515989026,7.1756,139.36,139.35,24.027864]
[1728515991550,7.1756,139.36,139.35,23.776884]
[1728515998360,7.1752,139.37,139.35,25.4627041]
[1728515998955,7.1752,139.37,139.35,25.4626656]
[1728515999160,7.1752,139.37,139.35,24.027864]
[1728515999461,7.1746,139.38,139.35,24.027864]
[1728516000640,7.1746,139.38,139.37,23.776884]
[1728516008872,57.29443289,139.42,139.31,85.5744]
[1728516009045,1.43143289,139.41,139.31,85.5744]
[1728516009247,1.43143289,139.41,139.31,15.5744]
[1728516009550,17.937,139.38,139.31,15.5744]
[1728516009868,7.1773,139.33,139.31,15.5744]
[1728516011470,7.1773,139.33,139.32,23.902374]
[1728516018872,7.1777,139.32,139.28,101.6534]
[1728516019056,7.1786,139.31,139.28,6.5253]
[1728516019255,21.43143289,139.35,139.28,6.5253]
[1728516019462,7.1788,139.3,139.28,6.5253]
[1728516020161,7.1788,139.3,139.29,24.027864]
[1728516020363,7.1788,139.3,139.29,23.902374]
[1728516020554,7.1788,139.3,139.29,23.776884]
[1728516025854,7.1783,139.31,139.29,23.776884]
[1728516026551,7.1783,139.31,139.3,25.2124119]
[1728516026754,7.1783,139.31,139.3,23.776884]
[1728516027173,7.1783,139.31,139.29,24.027864]
[1728516029062,17.9421,139.34,139.29,24.027864]
[1728516029261,7.1787,139.3,139.29,24.027864]
[1728516029479,7.1783,139.31,139.29,24.027864]
[1728516030458,7.1777,139.32,139.3,1.43549813]
[1728516030664,7.1777,139.32,139.31,23.776884]
[1728516031963,7.1777,139.32,139.3,23.776884]
[1728516033377,7.1777,139.32,139.31,1.43537515]
[1728516033594,7.1777,139.32,139.31,25.21225915]
[1728516035087,7.1767,139.34,139.32,0.12549]
[1728516035383,7.1762,139.35,139.32,24.027864]
[1728516038163,7.1752,139.37,139.32,45.05435557]
[1728516038389,7.1752,139.37,139.34,23.776884]
[1728516038558,7.1752,139.37,139.35,1.43499733]
[1728516040271,7.1756,139.36,139.33,23.776884]
[1728516042171,7.1765,139.35,139.32,24.027864]
[1728516042757,21.43143289,139.39,139.32,24.027864]
[1728516042961,7.1768,139.34,139.32,0.25098]
[1728516044062,7.1763,139.35,139.32,0.25098]
[1728516052487,7.177,139.34,139.3,33.8941]
[1728516052692,7.1777,139.32,139.3,15.9476]
[1728516053187,7.1777,139.32,139.28,13.705]
[1728516053394,7.1777,139.32,139.28,6.5253]
[1728516054494,7.1777,139.32,139.29,24.027864]
[1728516057379,7.1777,139.32,139.29,23.776884]
[1728516057687,7.1777,139.32,139.28,6.5253]
[1728516057688,7.1783,139.31,139.28,23.776884]
[1728516059682,1.43143289,139.35,139.28,37.62617557]
[1728516059881,7.1778,139.32,139.28,37.62617557]
[1728516060873,1.43143289,139.35,139.27,111.65309]
[1728516060874,7.1788,139.3,139.27,17.9504]
[1728516061222,7.1797,139.29,139.25,19.87829157]
[1728516061500,1.43143289,139.33,139.25,6.029]
[1728516061672,17.9455,139.32,139.25,6.029]
[1728516061986,7.1794,139.29,139.25,6.029]
[1728516063478,7.1794,139.29,139.26,24.027864]
[1728516065799,10.2264,139.34,139.27,1.43579699]
[1728516065800,1.43143289,139.33,139.27,1.43579699]
[1728516065981,7.1788,139.3,139.28,23.776884]
[1728516066177,7.1788,139.3,139.29,1.43569244]
[1728516066385,7.1788,139.3,139.28,1.43569122]
[1728516067484,7.1782,139.31,139.28,1.43569122]
[1728516075598,7.1782,139.31,139.28,23.776884]
[1728516075785,7.1792,139.29,139.28,23.776884]
[1728516075984,7.1792,139.29,139.26,0.25098]
[1728516076300,7.1792,139.29,139.26,24.027864]
[1728516080002,39.37473289,139.33,139.23,15.8775]
[1728516080003,7.1804,139.27,139.23,15.8775]
[1728516080205,7.1799,139.28,139.23,36.90899157]
[1728516081605,7.1799,139.28,139.24,25.21288973]
[1728516082492,7.1799,139.28,139.24,23.776884]
[1728516084007,1.43143289,139.3,139.24,23.776884]
[1728516084210,1.43143289,139.3,139.24,37.62617557]
[1728516084384,7.1803,139.27,139.24,23.776884]
[1728516084990,7.1811,139.26,139.24,23.776884]
[1728516085491,7.1818,139.25,139.21,17.9577]
[1728516085809,7.1818,139.24,139.2,27.14679157]
[1728516085984,7.1818,139.24,139.2,19.96309157]
[1728516086509,7.1813,139.25,139.21,15.28560564]
[1728516086707,1.43143289,139.28,139.22,13.84929157]
[1728516087012,7.1807,139.27,139.23,23.776884]
[1728516087185,7.181,139.26,139.23,23.776884]
[1728516088506,7.181,139.26,139.22,23.902374]
[1728516088818,7.1813,139.25,139.21,37.87715557]
[1728516089195,1.43143289,139.28,139.23,23.776884]
[1728516089392,7.1809,139.26,139.24,1.43619131]
[1728516090419,7.1809,139.26,139.23,23.776884]
[1728516091908,7.1809,139.26,139.24,1.43619236]
[1728516092290,7.1809,139.26,139.23,23.776884]
[1728516096002,7.1809,139.26,139.24,1.43617518]
[1728516096614,7.1809,139.26,139.23,23.776884]
[1728516097395,7.1809,139.26,139.23,25.21305987]
[1728516097589,1.43143289,139.28,139.23,25.21305987]
[1728516097590,7.1799,139.28,139.24,1.43617464]
[1728516097904,7.1799,139.28,139.25,23.776884]
[1728516098219,21.43143289,139.29,139.24,23.776884]
[1728516098220,7.1803,139.27,139.24,23.776884]
[1728516100716,7.1803,139.27,139.25,1.43603652]
[1728516101703,1.43143289,139.29,139.24,23.776884]
[1728516101909,7.1798,139.28,139.25,1.43594877]
[1728516103019,7.1798,139.28,139.24,44.80777557]
[1728516103225,7.1793,139.29,139.26,23.776884]
[1728516104902,7.1793,139.29,139.26,25.21277482]
[1728516106303,7.1793,139.29,139.26,23.776884]
[1728516108423,7.1799,139.28,139.26,23.776884]
[1728516108626,7.1799,139.28,139.25,23.902374]
[1728516119116,7.1799,139.28,139.26,1.43590179]
[1728516119541,7.1789,139.3,139.27,23.776884]
[1728516119744,7.1789,139.3,139.28,1.43570134]
[1728516120039,1.43143289,139.32,139.28,1.43570134]
[1728516120239,7.1784,139.31,139.28,1.43570134]
[1728516124335,7.1778,139.32,139.29,25.21258364]
[1728516126245,7.1773,139.33,139.29,46.24097521]
[1728516126927,7.1773,139.33,139.29,44.80527557]
[1728516127122,7.1773,139.33,139.29,37.62617557]
[1728516132929,7.1773,139.33,139.31,23.776884]
[1728516133429,7.1773,139.33,139.3,23.776884]
[1728516133622,7.1773,139.33,139.3,37.62617557]
[1728516133828,7.1767,139.34,139.32,23.776884]
[1728516134432,1.43143289,139.38,139.34,23.776884]
[1728516134659,7.1755,139.37,139.34,25.21199244]
[1728516134942,1.43143289,139.38,139.34,25.21199244]
[1728516135149,7.1756,139.36,139.33,23.776884]
[1728516135538,7.1756,139.36,139.34,1.43511692]
[1728516136137,7.1751,139.37,139.35,23.776884]
[1728516136328,7.1751,139.37,139.32,38.97029157]
[1728516136656,7.1751,139.37,139.33,23.902374]
[1728516137051,7.1751,139.37,139.33,23.776884]
[1728516139959,7.1761,139.35,139.33,23.776884]
[1728516143554,7.1761,139.35,139.32,23.776884]
[1728516145449,7.1757,139.36,139.32,44.80377557]